[Event "Titled Tuesday Blitz November 15 Early 2022"]
[White "Marchesich, Giovanni"]
[Black "Melikhov, Evgeny V."]
[WhiteFideId "2824790"]
[BlackFideId "4122046"]
[WhiteElo "2200"]
[BlackElo "2169"]
[Result "1/2-1/2"]
[Round "02"]
[TimeControl "180+1"]
[Date "2022.11.16"]
[WhiteClock "0:00:07"]
[BlackClock "0:00:12"]

1. d4 {[%clk 0:03:00]}  Nf6 {[%clk 0:02:59]} 2. Bf4 {[%clk 0:02:59]}  d5 {[%clk 0:02:59]} 3. e3 {[%clk 0:02:58]}  c5 {[%clk 0:02:59]} 4. Nf3 {[%clk 0:02:57]}  Nc6 {[%clk 0:02:59]} 5. Nbd2 {[%clk 0:02:57]}  cxd4 {[%clk 0:02:58]} 6. exd4 {[%clk 0:02:56]}  Bg4 {[%clk 0:02:57]} 7. Be2 {[%clk 0:02:53]}  e6 {[%clk 0:02:56]} 8. O-O {[%clk 0:02:43]}  Bd6 {[%clk 0:02:53]} 9. Bxd6 {[%clk 0:02:41]}  Qxd6 {[%clk 0:02:52]} 10. Nb3 {[%clk 0:02:38]}  O-O {[%clk 0:02:50]} 11. h3 {[%clk 0:02:31]}  Bxf3 {[%clk 0:02:47]} 12. Bxf3 {[%clk 0:02:31]}  Rfc8 {[%clk 0:02:41]} 13. Re1 {[%clk 0:02:22]}  Qc7 {[%clk 0:02:37]} 14. c3 {[%clk 0:02:22]}  Na5 {[%clk 0:02:32]} 15. Nxa5 {[%clk 0:01:45]}  Qxa5 {[%clk 0:02:30]} 16. Qd3 {[%clk 0:01:44]}  a6 {[%clk 0:02:10]} 17. g4 {[%clk 0:01:38]}  Qc7 {[%clk 0:02:02]} 18. g5 {[%clk 0:01:28]}  Ne8 {[%clk 0:02:02]} 19. Bg4 {[%clk 0:01:26]}  Qf4 {[%clk 0:01:55]} 20. Qe3 {[%clk 0:01:22]}  Qxe3 {[%clk 0:01:53]} 21. Rxe3 {[%clk 0:01:23]}  Nd6 {[%clk 0:01:53]} 22. Rae1 {[%clk 0:01:14]}  Kf8 {[%clk 0:01:39]} 23. h4 {[%clk 0:01:12]}  b5 {[%clk 0:01:33]} 24. h5 {[%clk 0:01:11]}  Nc4 {[%clk 0:01:14]} 25. R3e2 {[%clk 0:01:10]}  Rc6 {[%clk 0:01:08]} 26. f4 {[%clk 0:01:05]}  Nd6 {[%clk 0:00:58]} 27. g6 {[%clk 0:00:49]}  hxg6 {[%clk 0:00:58]} 28. hxg6 {[%clk 0:00:47]}  f5 {[%clk 0:00:58]} 29. Bxf5 {[%clk 0:00:22]}  Nxf5 {[%clk 0:00:54]} 30. Rxe6 {[%clk 0:00:22]}  Rac8 {[%clk 0:00:49]} 31. R6e5 {[%clk 0:00:20]}  Nh4 {[%clk 0:00:47]} 32. Kf2 {[%clk 0:00:19]}  Nxg6 {[%clk 0:00:45]} 33. Rxd5 {[%clk 0:00:18]}  Nxf4 {[%clk 0:00:40]} 34. Rf5+ {[%clk 0:00:16]}  Rf6 {[%clk 0:00:40]} 35. Rxf6+ {[%clk 0:00:17]}  gxf6 {[%clk 0:00:39]} 36. Kf3 {[%clk 0:00:18]}  Nd5 {[%clk 0:00:33]} 37. Re6 {[%clk 0:00:17]}  a5 {[%clk 0:00:27]} 38. Rd6 {[%clk 0:00:16]}  Ne7 {[%clk 0:00:20]} 39. Rxf6+ {[%clk 0:00:15]}  Ke8 {[%clk 0:00:20]} 40. Rb6 {[%clk 0:00:15]}  b4 {[%clk 0:00:19]} 41. cxb4 {[%clk 0:00:14]}  axb4 {[%clk 0:00:19]} 42. Rxb4 {[%clk 0:00:15]}  Kd7 {[%clk 0:00:19]} 43. Ke4 {[%clk 0:00:13]}  Rc2 {[%clk 0:00:18]} 44. Rb7+ {[%clk 0:00:09]}  Kd6 {[%clk 0:00:17]} 45. Rb6+ {[%clk 0:00:09]}  Nc6 {[%clk 0:00:15]} 46. d5 {[%clk 0:00:06]}  Rc4+ {[%clk 0:00:15]} 47. Kd3 {[%clk 0:00:05]}  Kxd5 {[%clk 0:00:15]} 48. Rb5+ {[%clk 0:00:05]}  Rc5 {[%clk 0:00:15]} 49. Rxc5+ {[%clk 0:00:05]}  Kxc5 {[%clk 0:00:16]} 50. Kc3 {[%clk 0:00:06]}  Kb5 {[%clk 0:00:15]} 51. b3 {[%clk 0:00:06]}  Nb4 {[%clk 0:00:14]} 52. a3 {[%clk 0:00:05]}  Nc6 {[%clk 0:00:14]} 53. a4+ {[%clk 0:00:05]}  Kc5 {[%clk 0:00:12]} 54. b4+ {[%clk 0:00:05]}  Nxb4 {[%clk 0:00:12]} 55. a5 {[%clk 0:00:06]}  Kb5 {[%clk 0:00:12]} 56. a6 {[%clk 0:00:07]}  Nxa6 {[%clk 0:00:12]} 1/2-1/2


[Site "https://www.chess.com"]

[Event "Titled Tuesday Blitz November 15 Early 2022"]
[White "Matinian, Nikita"]
[Black "Osinovsky, Stepan"]
[WhiteFideId "24129100"]
[BlackFideId "4157354"]
[WhiteElo "2422"]
[BlackElo "2222"]
[Result "1/2-1/2"]
[Round "02"]
[TimeControl "180+1"]
[Date "2022.11.16"]
[WhiteClock "0:00:49"]
[BlackClock "0:00:06"]

1. e4 {[%clk 0:03:00]}  e5 {[%clk 0:02:58]} 2. Nf3 {[%clk 0:03:00]}  Nc6 {[%clk 0:02:59]} 3. Bb5 {[%clk 0:03:00]}  a6 {[%clk 0:02:59]} 4. Ba4 {[%clk 0:03:01]}  Nf6 {[%clk 0:02:59]} 5. d3 {[%clk 0:03:02]}  b5 {[%clk 0:02:59]} 6. Bb3 {[%clk 0:03:02]}  Be7 {[%clk 0:02:56]} 7. Nc3 {[%clk 0:02:59]}  O-O {[%clk 0:02:54]} 8. O-O {[%clk 0:02:59]}  Bb7 {[%clk 0:02:39]} 9. a4 {[%clk 0:02:57]}  b4 {[%clk 0:02:22]} 10. Nd5 {[%clk 0:02:57]}  Nd4 {[%clk 0:02:21]} 11. Nxe7+ {[%clk 0:02:55]}  Qxe7 {[%clk 0:02:20]} 12. Nxd4 {[%clk 0:02:55]}  exd4 {[%clk 0:02:21]} 13. f4 {[%clk 0:02:55]}  c5 {[%clk 0:01:52]} 14. Qe1 {[%clk 0:02:53]}  Rae8 {[%clk 0:01:35]} 15. Qg3 {[%clk 0:02:42]}  Kh8 {[%clk 0:01:00]} 16. f5 {[%clk 0:02:41]}  d5 {[%clk 0:00:39]} 17. exd5 {[%clk 0:02:38]}  Bxd5 {[%clk 0:00:32]} 18. Bg5 {[%clk 0:02:21]}  Bxb3 {[%clk 0:00:28]} 19. cxb3 {[%clk 0:02:22]}  h6 {[%clk 0:00:27]} 20. Qh4 {[%clk 0:02:21]}  Qd6 {[%clk 0:00:20]} 21. Bxf6 {[%clk 0:02:21]}  Qxf6 {[%clk 0:00:19]} 22. Qxf6 {[%clk 0:02:21]}  gxf6 {[%clk 0:00:20]} 23. Rac1 {[%clk 0:02:21]}  Re5 {[%clk 0:00:20]} 24. Rc2 {[%clk 0:02:10]}  Rg8 {[%clk 0:00:20]} 25. Rfc1 {[%clk 0:02:08]}  Rg5 {[%clk 0:00:18]} 26. Rxc5 {[%clk 0:02:08]}  Rgxf5 {[%clk 0:00:18]} 27. Rxe5 {[%clk 0:02:07]}  Rxe5 {[%clk 0:00:18]} 28. Rc4 {[%clk 0:02:03]}  Re2 {[%clk 0:00:14]} 29. Rxd4 {[%clk 0:02:02]}  a5 {[%clk 0:00:13]} 30. Rd5 {[%clk 0:01:57]}  Rxb2 {[%clk 0:00:13]} 31. Rxa5 {[%clk 0:01:57]}  Rxb3 {[%clk 0:00:14]} 32. Rb5 {[%clk 0:01:57]}  Rxd3 {[%clk 0:00:11]} 33. Rxb4 {[%clk 0:01:57]}  Rd2 {[%clk 0:00:11]} 34. a5 {[%clk 0:01:55]}  Ra2 {[%clk 0:00:11]} 35. Rb5 {[%clk 0:01:55]}  Kg7 {[%clk 0:00:11]} 36. h4 {[%clk 0:01:54]}  Ra4 {[%clk 0:00:07]} 37. h5 {[%clk 0:01:53]}  Ra3 {[%clk 0:00:08]} 38. Kf2 {[%clk 0:01:51]}  Kf8 {[%clk 0:00:07]} 39. g4 {[%clk 0:01:46]}  Ke7 {[%clk 0:00:07]} 40. Ke2 {[%clk 0:01:47]}  Ra4 {[%clk 0:00:06]} 41. Kf3 {[%clk 0:01:46]}  Ke6 {[%clk 0:00:06]} 42. Rb6+ {[%clk 0:01:46]}  Ke5 {[%clk 0:00:06]} 43. a6 {[%clk 0:01:44]}  Ra3+ {[%clk 0:00:05]} 44. Ke2 {[%clk 0:01:41]}  Kf4 {[%clk 0:00:06]} 45. Rxf6+ {[%clk 0:01:40]}  Kxg4 {[%clk 0:00:06]} 46. Rxh6 {[%clk 0:01:40]}  f5 {[%clk 0:00:06]} 47. Kd2 {[%clk 0:01:21]}  f4 {[%clk 0:00:06]} 48. Kc2 {[%clk 0:01:21]}  f3 {[%clk 0:00:06]} 49. Rf6 {[%clk 0:01:15]}  f2 {[%clk 0:00:04]} 50. Kb2 {[%clk 0:01:05]}  Rf3 {[%clk 0:00:04]} 51. Rxf3 {[%clk 0:01:02]}  Kxf3 {[%clk 0:00:05]} 52. a7 {[%clk 0:01:03]}  f1=Q {[%clk 0:00:05]} 53. a8=Q+ {[%clk 0:01:03]}  Kg4 {[%clk 0:00:04]} 54. Qe8 {[%clk 0:01:00]}  Qf6+ {[%clk 0:00:02]} 55. Kb3 {[%clk 0:00:58]}  Kg5 {[%clk 0:00:03]} 56. Kc4 {[%clk 0:00:56]}  Qh6 {[%clk 0:00:03]} 57. Kd4 {[%clk 0:00:53]}  Qxh5 {[%clk 0:00:04]} 58. Qg8+ {[%clk 0:00:53]}  Kh6 {[%clk 0:00:05]} 59. Qh8+ {[%clk 0:00:50]}  Kg5 {[%clk 0:00:05]} 60. Qe5+ {[%clk 0:00:48]}  Kh6 {[%clk 0:00:06]} 61. Qh8+ {[%clk 0:00:48]}  Kg5 {[%clk 0:00:06]} 62. Qxh5+ {[%clk 0:00:49]}  Kxh5 {[%clk 0:00:06]} 1/2-1/2


[Site "https://www.chess.com"]

[Event "Titled Tuesday Blitz November 15 Early 2022"]
[White "Miszler, Levente"]
[Black "Shapiro, Daniel"]
[WhiteFideId "763276"]
[BlackFideId "2001780"]
[WhiteElo "2176"]
[BlackElo "2287"]
[Result "1/2-1/2"]
[Round "02"]
[TimeControl "180+1"]
[Date "2022.11.16"]
[WhiteClock "0:00:22"]
[BlackClock "0:00:14"]

1. Nf3 {[%clk 0:03:00]}  Nf6 {[%clk 0:02:59]} 2. c4 {[%clk 0:02:45]}  Nc6 {[%clk 0:02:57]} 3. g3 {[%clk 0:02:40]}  e5 {[%clk 0:02:57]} 4. Nc3 {[%clk 0:02:38]}  d5 {[%clk 0:02:56]} 5. cxd5 {[%clk 0:02:33]}  Nxd5 {[%clk 0:02:56]} 6. Nxd5 {[%clk 0:02:29]}  Qxd5 {[%clk 0:02:55]} 7. d3 {[%clk 0:02:30]}  Bb4+ {[%clk 0:02:49]} 8. Bd2 {[%clk 0:02:28]}  a5 {[%clk 0:02:38]} 9. Bg2 {[%clk 0:02:28]}  O-O {[%clk 0:02:35]} 10. O-O {[%clk 0:02:26]}  Qd6 {[%clk 0:02:34]} 11. a3 {[%clk 0:02:26]}  Bc5 {[%clk 0:02:29]} 12. Rc1 {[%clk 0:02:21]}  h6 {[%clk 0:02:21]} 13. Qc2 {[%clk 0:02:05]}  Bb6 {[%clk 0:02:16]} 14. Bc3 {[%clk 0:02:06]}  a4 {[%clk 0:02:07]} 15. Rfd1 {[%clk 0:02:04]}  Be6 {[%clk 0:02:07]} 16. Qd2 {[%clk 0:01:53]}  Bb3 {[%clk 0:02:03]} 17. Re1 {[%clk 0:01:53]}  Rad8 {[%clk 0:02:01]} 18. Bb4 {[%clk 0:01:53]}  Nxb4 {[%clk 0:01:57]} 19. Qxb4 {[%clk 0:01:54]}  Qxb4 {[%clk 0:01:46]} 20. axb4 {[%clk 0:01:54]}  f6 {[%clk 0:01:41]} 21. Nd2 {[%clk 0:01:52]}  Bd5 {[%clk 0:01:13]} 22. Bxd5+ {[%clk 0:01:42]}  Rxd5 {[%clk 0:01:13]} 23. Ra1 {[%clk 0:01:43]}  Ra8 {[%clk 0:01:10]} 24. b3 {[%clk 0:01:37]}  a3 {[%clk 0:01:08]} 25. Nc4 {[%clk 0:01:37]}  Rb5 {[%clk 0:01:08]} 26. Rxa3 {[%clk 0:01:30]}  Rxa3 {[%clk 0:01:07]} 27. Nxa3 {[%clk 0:01:31]}  Rxb4 {[%clk 0:01:07]} 28. Rb1 {[%clk 0:01:31]}  Bc5 {[%clk 0:01:02]} 29. Nc2 {[%clk 0:01:27]}  Rb6 {[%clk 0:01:00]} 30. Kf1 {[%clk 0:01:28]}  Kf7 {[%clk 0:00:53]} 31. e3 {[%clk 0:01:28]}  Ke6 {[%clk 0:00:52]} 32. Ke2 {[%clk 0:01:28]}  Kd5 {[%clk 0:00:50]} 33. d4 {[%clk 0:01:27]}  exd4 {[%clk 0:00:48]} 34. exd4 {[%clk 0:01:28]}  Bxd4 {[%clk 0:00:41]} 35. Rd1 {[%clk 0:01:28]}  c5 {[%clk 0:00:40]} 36. Rd3 {[%clk 0:01:22]}  Re6+ {[%clk 0:00:37]} 37. Kf3 {[%clk 0:01:22]}  Ke5 {[%clk 0:00:29]} 38. b4 {[%clk 0:01:15]}  b6 {[%clk 0:00:29]} 39. bxc5 {[%clk 0:00:57]}  bxc5 {[%clk 0:00:29]} 40. Ne3 {[%clk 0:00:58]}  Bxe3 {[%clk 0:00:26]} 41. Kxe3 {[%clk 0:00:57]}  Rc6 {[%clk 0:00:25]} 42. Kd2 {[%clk 0:00:54]}  g5 {[%clk 0:00:22]} 43. Kc3 {[%clk 0:00:53]}  f5 {[%clk 0:00:19]} 44. Kc4 {[%clk 0:00:52]}  f4 {[%clk 0:00:19]} 45. f3 {[%clk 0:00:51]}  fxg3 {[%clk 0:00:18]} 46. hxg3 {[%clk 0:00:52]}  h5 {[%clk 0:00:18]} 47. Rd5+ {[%clk 0:00:47]}  Kf6 {[%clk 0:00:18]} 48. f4 {[%clk 0:00:42]}  gxf4 {[%clk 0:00:18]} 49. gxf4 {[%clk 0:00:42]}  h4 {[%clk 0:00:18]} 50. Rh5 {[%clk 0:00:42]}  h3 {[%clk 0:00:18]} 51. Rxh3 {[%clk 0:00:29]}  Kf5 {[%clk 0:00:18]} 52. Rh4 {[%clk 0:00:28]}  Re6 {[%clk 0:00:17]} 53. Kd5 {[%clk 0:00:22]}  Rg6 {[%clk 0:00:14]} 54. Kxc5 {[%clk 0:00:20]}  Rg4 {[%clk 0:00:14]} 55. Rxg4 {[%clk 0:00:21]}  Kxg4 {[%clk 0:00:14]} 56. f5 {[%clk 0:00:22]}  Kxf5 {[%clk 0:00:14]} 1/2-1/2


[Site "https://www.chess.com"]

[Event "Titled Tuesday Blitz November 15 Early 2022"]
[White "Mohamed, Saeed Laily"]
[Black "Neiksans, Arturs"]
[WhiteFideId "9314946"]
[BlackFideId "11601388"]
[WhiteElo "1874"]
[BlackElo "2497"]
[Result "0-1"]
[Round "02"]
[TimeControl "180+1"]
[Date "2022.11.16"]
[WhiteClock "0:00:03"]
[BlackClock "0:01:22"]

1. d4 {[%clk 0:03:00]}  f5 {[%clk 0:02:59]} 2. e4 {[%clk 0:03:00]}  fxe4 {[%clk 0:02:59]} 3. Nc3 {[%clk 0:03:01]}  Nf6 {[%clk 0:03:00]} 4. Bg5 {[%clk 0:03:01]}  Nc6 {[%clk 0:03:00]} 5. d5 {[%clk 0:02:47]}  Ne5 {[%clk 0:03:00]} 6. Bxf6 {[%clk 0:02:39]}  gxf6 {[%clk 0:02:59]} 7. Nxe4 {[%clk 0:02:37]}  c6 {[%clk 0:02:57]} 8. d6 {[%clk 0:02:22]}  exd6 {[%clk 0:02:40]} 9. Qh5+ {[%clk 0:01:56]}  Nf7 {[%clk 0:02:23]} 10. O-O-O {[%clk 0:01:55]}  d5 {[%clk 0:02:23]} 11. Ng3 {[%clk 0:01:07]}  Qa5 {[%clk 0:02:22]} 12. Kb1 {[%clk 0:00:40]}  Bd6 {[%clk 0:02:09]} 13. Nf3 {[%clk 0:00:32]}  Be5 {[%clk 0:02:08]} 14. Nf5 {[%clk 0:00:20]}  Kf8 {[%clk 0:01:59]} 15. Nxe5 {[%clk 0:00:14]}  fxe5 {[%clk 0:02:00]} 16. Nh6 {[%clk 0:00:13]}  Nxh6 {[%clk 0:01:51]} 17. Qxh6+ {[%clk 0:00:13]}  Ke8 {[%clk 0:01:51]} 18. Be2 {[%clk 0:00:13]}  d6 {[%clk 0:01:46]} 19. Bh5+ {[%clk 0:00:13]}  Kd8 {[%clk 0:01:41]} 20. Qf6+ {[%clk 0:00:12]}  Kc7 {[%clk 0:01:41]} 21. Qxh8 {[%clk 0:00:12]}  Bf5 {[%clk 0:01:41]} 22. Qg7+ {[%clk 0:00:11]}  Kb6 {[%clk 0:01:41]} 23. g4 {[%clk 0:00:09]}  Be4 {[%clk 0:01:40]} 24. Rhe1 {[%clk 0:00:09]}  Qc5 {[%clk 0:01:37]} 25. Qg5 {[%clk 0:00:08]}  Bxc2+ {[%clk 0:01:35]} 26. Ka1 {[%clk 0:00:08]}  Bxd1 {[%clk 0:01:36]} 27. Rxd1 {[%clk 0:00:09]}  Qxf2 {[%clk 0:01:33]} 28. Qc1 {[%clk 0:00:08]}  Rf8 {[%clk 0:01:32]} 29. h3 {[%clk 0:00:04]}  e4 {[%clk 0:01:33]} 30. Qc3 {[%clk 0:00:04]}  e3 {[%clk 0:01:24]} 31. Qb3+ {[%clk 0:00:04]}  Kc7 {[%clk 0:01:24]} 32. Rc1 {[%clk 0:00:03]}  e2 {[%clk 0:01:22]} 0-1


[Site "https://www.chess.com"]

[Event "Titled Tuesday Blitz November 15 Early 2022"]
[White "Mohammed, Zozek Salah Mohammed"]
[Black "Hnydiuk, Aleksander"]
[WhiteFideId "4803361"]
[BlackFideId "1109057"]
[WhiteElo "2199"]
[BlackElo "2374"]
[Result "1/2-1/2"]
[Round "02"]
[TimeControl "180+1"]
[Date "2022.11.16"]
[WhiteClock "0:02:09"]
[BlackClock "0:02:31"]

1. d4 {[%clk 0:03:00]}  Nf6 {[%clk 0:02:55]} 2. Nf3 {[%clk 0:02:59]}  d5 {[%clk 0:02:54]} 3. c4 {[%clk 0:02:58]}  dxc4 {[%clk 0:02:50]} 4. e3 {[%clk 0:02:53]}  e6 {[%clk 0:02:50]} 5. Bxc4 {[%clk 0:02:53]}  c5 {[%clk 0:02:51]} 6. O-O {[%clk 0:02:50]}  a6 {[%clk 0:02:51]} 7. a4 {[%clk 0:02:43]}  Nc6 {[%clk 0:02:49]} 8. Nc3 {[%clk 0:02:39]}  Be7 {[%clk 0:02:48]} 9. dxc5 {[%clk 0:02:28]}  Bxc5 {[%clk 0:02:48]} 10. Qxd8+ {[%clk 0:02:27]}  Kxd8 {[%clk 0:02:49]} 11. b3 {[%clk 0:02:19]}  Ke7 {[%clk 0:02:47]} 12. Bb2 {[%clk 0:02:16]}  b6 {[%clk 0:02:45]} 13. Ne2 {[%clk 0:02:10]}  Bb7 {[%clk 0:02:43]} 14. Ned4 {[%clk 0:02:11]}  Nxd4 {[%clk 0:02:38]} 15. Nxd4 {[%clk 0:02:11]}  Rac8 {[%clk 0:02:31]} 16. Rac1 {[%clk 0:02:09]}  Rhd8 {[%clk 0:02:31]} 17. Rfd1 {[%clk 0:02:09]} 1/2-1/2


[Site "https://www.chess.com"]

[Event "Titled Tuesday Blitz November 15 Early 2022"]
[White "Mouhamad, Joachim"]
[Black "Shipov, Sergei"]
[WhiteFideId "656410"]
[BlackFideId "4113624"]
[WhiteElo "2164"]
[BlackElo "2780"]
[Result "1-0"]
[Round "02"]
[TimeControl "180+1"]
[Date "2022.11.16"]
[WhiteClock "0:00:25"]
[BlackClock "0:01:00"]

1. e4 {[%clk 0:02:57]}  e6 {[%clk 0:02:57]} 2. d4 {[%clk 0:02:57]}  d5 {[%clk 0:02:58]} 3. e5 {[%clk 0:02:57]}  Bd7 {[%clk 0:02:57]} 4. Nf3 {[%clk 0:02:54]}  a6 {[%clk 0:02:57]} 5. c4 {[%clk 0:02:51]}  Bb4+ {[%clk 0:02:53]} 6. Bd2 {[%clk 0:02:50]}  Bxd2+ {[%clk 0:02:52]} 7. Qxd2 {[%clk 0:02:51]}  dxc4 {[%clk 0:02:49]} 8. Bxc4 {[%clk 0:02:52]}  Bb5 {[%clk 0:02:47]} 9. Bb3 {[%clk 0:02:52]}  Ne7 {[%clk 0:02:43]} 10. Nc3 {[%clk 0:02:52]}  O-O {[%clk 0:02:41]} 11. Nxb5 {[%clk 0:02:51]}  axb5 {[%clk 0:02:41]} 12. O-O {[%clk 0:02:49]}  Nd7 {[%clk 0:02:36]} 13. Rac1 {[%clk 0:02:46]}  Nb6 {[%clk 0:02:34]} 14. Ng5 {[%clk 0:02:39]}  h6 {[%clk 0:02:32]} 15. Ne4 {[%clk 0:02:36]}  Nf5 {[%clk 0:02:30]} 16. Rfd1 {[%clk 0:02:34]}  Qe7 {[%clk 0:02:25]} 17. Qc3 {[%clk 0:02:21]}  c6 {[%clk 0:02:23]} 18. g4 {[%clk 0:02:10]}  Nh4 {[%clk 0:02:21]} 19. Rd3 {[%clk 0:02:00]}  Ng6 {[%clk 0:02:14]} 20. Qd2 {[%clk 0:01:44]}  Nd5 {[%clk 0:02:11]} 21. Bxd5 {[%clk 0:01:42]}  exd5 {[%clk 0:02:08]} 22. Nd6 {[%clk 0:01:35]}  Rxa2 {[%clk 0:02:05]} 23. f4 {[%clk 0:01:30]}  Rfa8 {[%clk 0:01:41]} 24. f5 {[%clk 0:01:29]}  Nf8 {[%clk 0:01:32]} 25. f6 {[%clk 0:01:20]}  Qe6 {[%clk 0:01:28]} 26. fxg7 {[%clk 0:01:14]}  Ng6 {[%clk 0:01:24]} 27. Nf5 {[%clk 0:01:06]}  Ra1 {[%clk 0:01:21]} 28. Qxh6 {[%clk 0:00:49]}  Rxc1+ {[%clk 0:01:02]} 29. Qxc1 {[%clk 0:00:49]}  Nxe5 {[%clk 0:01:00]} 30. dxe5 {[%clk 0:00:35]}  Qxe5 {[%clk 0:01:00]} 31. Rh3 {[%clk 0:00:25]} 1-0


[Site "https://www.chess.com"]

[Event "Titled Tuesday Blitz November 15 Early 2022"]
[White "Muminova, Nafisa"]
[Black "Guzman, Christopher"]
[WhiteFideId "14201526"]
[BlackFideId "6405096"]
[WhiteElo "2258"]
[BlackElo "2272"]
[Result "0-1"]
[Round "02"]
[TimeControl "180+1"]
[Date "2022.11.16"]
[WhiteClock "0:00:10"]
[BlackClock "0:01:57"]

1. e4 {[%clk 0:03:00]}  c6 {[%clk 0:02:59]} 2. d4 {[%clk 0:03:00]}  d5 {[%clk 0:03:00]} 3. e5 {[%clk 0:02:59]}  Bf5 {[%clk 0:02:59]} 4. h4 {[%clk 0:02:55]}  h5 {[%clk 0:02:59]} 5. Bd3 {[%clk 0:02:46]}  Bxd3 {[%clk 0:02:59]} 6. Qxd3 {[%clk 0:02:46]}  Qa5+ {[%clk 0:03:00]} 7. Bd2 {[%clk 0:02:45]}  Qa6 {[%clk 0:03:00]} 8. e6 {[%clk 0:02:22]}  Qxd3 {[%clk 0:02:59]} 9. exf7+ {[%clk 0:02:22]}  Kxf7 {[%clk 0:03:00]} 10. cxd3 {[%clk 0:02:22]}  Nd7 {[%clk 0:02:58]} 11. Nf3 {[%clk 0:02:22]}  Nh6 {[%clk 0:02:57]} 12. Nc3 {[%clk 0:02:14]}  Ng4 {[%clk 0:02:57]} 13. O-O {[%clk 0:02:10]}  e5 {[%clk 0:02:57]} 14. Ng5+ {[%clk 0:02:03]}  Kg6 {[%clk 0:02:57]} 15. f3 {[%clk 0:01:37]}  exd4 {[%clk 0:02:40]} 16. Ne2 {[%clk 0:01:32]}  Nge5 {[%clk 0:02:39]} 17. Nf4+ {[%clk 0:01:12]}  Kf6 {[%clk 0:02:32]} 18. Rae1 {[%clk 0:01:03]}  Bc5 {[%clk 0:02:28]} 19. g4 {[%clk 0:00:55]}  g6 {[%clk 0:02:22]} 20. Nge6 {[%clk 0:00:32]}  Bb6 {[%clk 0:02:18]} 21. Kg2 {[%clk 0:00:28]}  Rae8 {[%clk 0:02:13]} 22. Ng5 {[%clk 0:00:20]}  Kg7 {[%clk 0:02:05]} 23. Nfe6+ {[%clk 0:00:19]}  Kf6 {[%clk 0:02:01]} 24. Nf4 {[%clk 0:00:19]}  a6 {[%clk 0:01:59]} 25. Kg3 {[%clk 0:00:18]}  Nc5 {[%clk 0:01:58]} 26. Nge6 {[%clk 0:00:17]}  Nxe6 {[%clk 0:01:57]} 27. Nxe6 {[%clk 0:00:15]}  Rxe6 {[%clk 0:01:57]} 28. g5+ {[%clk 0:00:16]}  Kf7 {[%clk 0:01:57]} 29. f4 {[%clk 0:00:12]}  Nxd3 {[%clk 0:01:57]} 30. Rxe6 {[%clk 0:00:13]}  Kxe6 {[%clk 0:01:58]} 31. Rf3 {[%clk 0:00:10]}  Nc5 {[%clk 0:01:56]} 32. Rf1 {[%clk 0:00:10]}  Ne4+ {[%clk 0:01:57]} 0-1


[Site "https://www.chess.com"]

[Event "Titled Tuesday Blitz November 15 Early 2022"]
[White "Nakamura, Hikaru"]
[Black "Yeremyan, Alen"]
[WhiteFideId "2016192"]
[BlackFideId "13308998"]
[WhiteElo "2909"]
[BlackElo "2159"]
[Result "1-0"]
[Round "02"]
[TimeControl "180+1"]
[Date "2022.11.15"]
[WhiteClock "0:00:07"]
[BlackClock "0:00:00"]

1. g3 {[%clk 0:03:00]}  g6 {[%clk 0:02:58]} 2. Bg2 {[%clk 0:02:55]}  Bg7 {[%clk 0:02:57]} 3. e4 {[%clk 0:02:54]}  e5 {[%clk 0:02:56]} 4. Ne2 {[%clk 0:02:53]}  Ne7 {[%clk 0:02:56]} 5. d4 {[%clk 0:02:51]}  exd4 {[%clk 0:02:49]} 6. Nxd4 {[%clk 0:02:52]}  O-O {[%clk 0:02:49]} 7. Nc3 {[%clk 0:02:49]}  Nbc6 {[%clk 0:02:47]} 8. Nde2 {[%clk 0:02:46]}  d6 {[%clk 0:02:42]} 9. O-O {[%clk 0:02:45]}  Be6 {[%clk 0:02:38]} 10. Nf4 {[%clk 0:02:44]}  Qd7 {[%clk 0:02:35]} 11. Ncd5 {[%clk 0:02:36]}  Ne5 {[%clk 0:02:33]} 12. Nxe6 {[%clk 0:02:31]}  fxe6 {[%clk 0:02:20]} 13. Nxe7+ {[%clk 0:02:31]}  Qxe7 {[%clk 0:02:20]} 14. f4 {[%clk 0:02:32]}  Nc6 {[%clk 0:02:18]} 15. c3 {[%clk 0:02:31]}  Rad8 {[%clk 0:02:18]} 16. Re1 {[%clk 0:02:28]}  Qf7 {[%clk 0:02:14]} 17. Be3 {[%clk 0:02:20]}  Kh8 {[%clk 0:01:56]} 18. Qb3 {[%clk 0:02:13]}  b6 {[%clk 0:01:51]} 19. Rad1 {[%clk 0:02:12]}  g5 {[%clk 0:01:43]} 20. fxg5 {[%clk 0:01:59]}  Ne5 {[%clk 0:01:40]} 21. Bf4 {[%clk 0:01:59]}  Ng6 {[%clk 0:01:29]} 22. Rf1 {[%clk 0:01:57]}  Nxf4 {[%clk 0:01:24]} 23. gxf4 {[%clk 0:01:50]}  Qg6 {[%clk 0:01:22]} 24. h4 {[%clk 0:01:44]}  Qh5 {[%clk 0:01:19]} 25. Qxe6 {[%clk 0:01:13]}  Qxh4 {[%clk 0:01:19]} 26. Qh3 {[%clk 0:00:58]}  Rxf4 {[%clk 0:01:14]} 27. Qxh4 {[%clk 0:00:58]}  Rxh4 {[%clk 0:01:13]} 28. Rf7 {[%clk 0:00:59]}  Rg4 {[%clk 0:00:59]} 29. Rxc7 {[%clk 0:00:55]}  Rxg5 {[%clk 0:00:59]} 30. Rxa7 {[%clk 0:00:53]}  Be5 {[%clk 0:00:53]} 31. Rf7 {[%clk 0:00:52]}  Rdg8 {[%clk 0:00:52]} 32. Rd2 {[%clk 0:00:53]}  Rg4 {[%clk 0:00:48]} 33. Kf1 {[%clk 0:00:53]}  h5 {[%clk 0:00:43]} 34. Rdf2 {[%clk 0:00:40]}  h4 {[%clk 0:00:40]} 35. R7f5 {[%clk 0:00:40]}  Bg3 {[%clk 0:00:26]} 36. Rh5+ {[%clk 0:00:37]}  Kg7 {[%clk 0:00:27]} 37. Rff5 {[%clk 0:00:37]}  Rg6 {[%clk 0:00:22]} 38. a4 {[%clk 0:00:26]}  Ra8 {[%clk 0:00:20]} 39. e5 {[%clk 0:00:20]}  Rxa4 {[%clk 0:00:15]} 40. Bd5 {[%clk 0:00:21]}  Ra1+ {[%clk 0:00:14]} 41. Ke2 {[%clk 0:00:20]}  Re1+ {[%clk 0:00:06]} 42. Kd2 {[%clk 0:00:21]}  Rxe5 {[%clk 0:00:06]} 43. Rf7+ {[%clk 0:00:19]}  Kg8 {[%clk 0:00:06]} 44. Rb7+ {[%clk 0:00:17]}  Rxd5+ {[%clk 0:00:06]} 45. Rxd5 {[%clk 0:00:18]}  Bf4+ {[%clk 0:00:06]} 46. Kd3 {[%clk 0:00:17]}  h3 {[%clk 0:00:06]} 47. Rh5 {[%clk 0:00:15]}  h2 {[%clk 0:00:06]} 48. Rbh7 {[%clk 0:00:14]}  Rg2 {[%clk 0:00:06]} 49. b4 {[%clk 0:00:14]}  d5 {[%clk 0:00:06]} 50. c4 {[%clk 0:00:13]}  Rd2+ {[%clk 0:00:06]} 51. Kc3 {[%clk 0:00:14]}  d4+ {[%clk 0:00:07]} 52. Kb3 {[%clk 0:00:15]}  Rd3+ {[%clk 0:00:06]} 53. Ka4 {[%clk 0:00:14]}  Rc3 {[%clk 0:00:06]} 54. Kb5 {[%clk 0:00:13]}  d3 {[%clk 0:00:06]} 55. Rxh2 {[%clk 0:00:14]}  Bxh2 {[%clk 0:00:05]} 56. Rxh2 {[%clk 0:00:15]}  Rc2 {[%clk 0:00:04]} 57. Rh3 {[%clk 0:00:12]}  Rc3 {[%clk 0:00:03]} 58. Rh4 {[%clk 0:00:06]}  Kf7 {[%clk 0:00:02]} 59. Re4 {[%clk 0:00:06]}  Kf6 {[%clk 0:00:02]} 60. c5 {[%clk 0:00:07]}  Kf5 {[%clk 0:00:00]} 61. Re8 {[%clk 0:00:07]} 1-0


[Site "https://www.chess.com"]